bitfinex/quotes_ETHUSD_20250824
["timestamp","ask_amount","ask_price","bid_price","bid_amount"]
[1756076751507,0.1048,4788.2,4788.1,0.3111]
[1756076751708,0.1048,4788.6,4788.1,1.41872666]
[1756076752213,0.1048,4788.6,4788.3,2.08842297]
[1756076752510,0.1048,4788.6,4788.3,3.588]
[1756076752671,0.2906,4788.4,4788.3,3.588]
[1756076752871,0.7297,4788.4,4788.3,3.588]
[1756076753400,0.1048,4788.6,4788.3,5.67642243]
[1756076754914,0.1048,4788.6,4788.5,2.39543663]
[1756076755418,2.05623192,4789.7,4788.9,2.08812456]
[1756076755577,0.1048,4789.1,4789.0,3.588]
[1756076757669,0.4401,4789.8,4789.2,2.08801107]
[1756076757670,0.001,4789.8,4789.2,2.08801107]
[1756076757912,0.001,4789.8,4789.3,3.588]
[1756076758074,0.001,4789.8,4789.7,2.39491343]
[1756076758270,0.001,4789.8,4789.7,8.98191343]
[1756076758513,0.001,4789.8,4789.7,9.50441343]
[1756076758817,0.001,4789.8,4789.7,10.26841343]
[1756076758974,0.001,4789.8,4789.7,12.29975706]
[1756076759173,0.001,4790.0,4789.9,2.08772625]
[1756076759376,0.001,4790.9,4790.3,0.66]
[1756076759613,0.001,4790.9,4790.7,2.08737762]
[1756076759772,0.001,4790.9,4790.8,2.08733405]
[1756076759971,0.001,4790.9,4790.8,7.84427768]
[1756076760210,0.001,4790.9,4790.8,8.50427768]
[1756076760678,0.003,4791.9,4791.3,18.13157961]
[1756076760876,0.003,4791.9,4791.3,22.02567961]
[1756076761619,0.003,4791.9,4791.3,6.691]
[1756076761816,0.003,4791.9,4791.3,9.44721623]
[1756076761976,0.003,4791.9,4791.3,9.75431623]
[1756076763531,0.003,4791.9,4791.3,9.85831623]
[1756076765127,0.003,4791.9,4791.3,9.55121623]
[1756076766041,0.4421,4791.9,4791.3,9.55121623]
[1756076767299,0.3336,4791.4,4791.3,3.208]
[1756076767499,0.7727,4791.4,4791.3,6.689]
[1756076767699,0.7727,4791.4,4791.3,6.585]
[1756076768215,0.043,4791.4,4791.3,6.585]
[1756076768409,0.7727,4791.4,4791.3,6.585]
[1756076769424,0.7727,4791.4,4791.3,3.585]
[1756076770139,0.3336,4791.4,4791.3,3.585]
[1756076771444,0.7727,4791.4,4791.3,3.585]
[1756076772834,0.3336,4791.4,4791.3,3.585]
[1756076773035,0.043,4791.4,4791.3,9.57380021]
[1756076773420,0.043,4791.4,4791.3,9.90740021]
[1756076773737,0.043,4791.4,4791.3,11.08990021]
[1756076776222,0.043,4791.4,4791.3,10.67140021]
[1756076776440,0.004,4791.9,4791.8,5.74689845]
[1756076776618,0.004,4791.9,4791.8,24.28146183]
[1756076776824,0.004,4791.9,4791.8,24.38546183]
[1756076777041,0.004,4791.9,4791.8,23.72546183]
[1756076777229,0.004,4791.9,4791.8,10.68099845]
[1756076777544,0.004,4791.9,4791.8,12.71234208]
[1756076777961,0.004,4791.9,4791.8,13.15514208]
[1756076778465,0.004,4791.9,4791.8,14.23364208]
[1756076778664,0.004,4791.9,4791.8,13.81514208]
[1756076779344,0.004,4791.9,4791.8,13.15514208]
[1756076779735,0.004,4791.9,4791.8,12.85404208]
[1756076779936,0.004,4791.9,4791.8,13.15514208]
[1756076780354,0.004,4791.9,4791.8,13.81514208]
[1756076780946,0.004,4791.9,4791.8,14.23364208]
[1756076781747,0.004,4791.9,4791.8,13.81514208]
[1756076782567,0.041,4792.4,4792.3,2.08668071]
[1756076782767,0.041,4792.4,4792.3,22.73258688]
[1756076782968,0.041,4792.4,4792.3,22.83658688]
[1756076783140,0.041,4792.4,4792.3,23.49658688]
[1756076783455,0.041,4792.4,4792.3,23.93938688]
[1756076784875,0.001,4792.9,4792.6,2.08655009]
[1756076785191,0.001,4792.9,4792.8,6.04756302]
[1756076785970,0.001,4792.9,4792.8,6.15156302]
[1756076787378,0.001,4792.9,4792.8,5.19046302]
[1756076787547,0.001,4792.9,4792.8,6.15156302]
[1756076788342,0.001,4792.9,4792.8,6.57006302]
[1756076788586,0.001,4792.9,4792.8,8.38194012]
[1756076788748,0.001,4792.9,4792.8,7.96344012]
[1756076789980,0.001,4792.9,4792.8,11.54544012]
[1756076790498,0.04,4793.4,4792.8,11.54544012]
[1756076790499,0.04,4793.4,4793.3,5.74624538]
[1756076790698,0.04,4793.4,4793.3,24.06970641]
[1756076791192,0.04,4793.4,4793.3,24.51250641]
[1756076791778,0.003,4794.1,4794.0,2.74594075]
[1756076791983,0.04,4794.4,4794.3,2.74581023]
[1756076792184,0.04,4794.4,4794.3,2.18981023]
[1756076792369,0.3257,4794.4,4794.3,5.77181023]
[1756076792575,0.3257,4794.4,4794.3,7.80315386]
[1756076792893,0.7685,4794.4,4794.3,6.686]
[1756076793286,0.7685,4794.4,4794.3,8.77181023]
[1756076793487,0.7685,4794.4,4794.3,9.39876923]
[1756076794007,0.7685,4794.4,4794.3,7.312959]
[1756076794306,0.7685,4794.4,4794.3,9.39876923]
[1756076794493,0.7685,4794.4,4794.3,7.312959]
[1756076794904,0.7685,4794.4,4794.3,9.39876923]
[1756076795490,0.7685,4794.4,4794.3,7.312959]
[1756076795798,0.04,4794.4,4794.3,10.49905127]
[1756076796181,0.04,4794.4,4794.3,23.54351465]
[1756076796908,0.04,4794.4,4794.3,23.84461465]
[1756076797065,0.04,4794.4,4794.3,24.50461465]
[1756076797906,0.7685,4794.4,4794.3,24.20351465]
[1756076798109,0.3257,4794.4,4794.3,23.54251465]
[1756076798836,0.04,4794.4,4794.3,23.54251465]
[1756076799035,0.04,4794.4,4794.3,23.84361465]
[1756076799193,0.04,4794.4,4794.3,24.50361465]
[1756076801390,0.3257,4794.4,4794.3,23.54151465]
[1756076801639,0.7685,4794.4,4794.3,23.54151465]
[1756076801799,0.3257,4794.4,4794.3,23.54151465]
[1756076801996,0.04,4794.4,4794.3,23.54151465]
[1756076803134,0.041,4794.4,4794.3,23.84261465]
[1756076803502,0.041,4794.4,4794.3,24.20151465]
[1756076803834,0.041,4794.4,4794.3,24.50691465]
[1756076806697,0.001,4794.9,4794.8,2.74559272]
[1756076807024,0.001,4794.9,4794.8,10.51711778]
[1756076807416,0.001,4794.9,4794.8,11.14390578]
[1756076807611,0.3152,4794.9,4794.8,10.83850578]
[1756076808526,0.7896,4794.9,4794.8,10.83850578]
[1756076808732,0.3152,4794.9,4794.8,10.83850578]
[1756076809024,0.001,4794.9,4794.8,11.14390578]
[1756076813859,0.3152,4794.9,4794.8,6.59950578]
[1756076814022,0.7896,4794.9,4794.8,0.730788]
[1756076814339,0.7896,4794.9,4794.8,9.39538072]
[1756076815308,0.001,4794.9,4794.8,9.39538072]
[1756076815528,0.001,4794.9,4794.8,9.70078072]
[1756076815736,0.001,4794.9,4794.8,12.39212435]
[1756076817137,0.041,4795.4,4795.3,2.74537526]
[1756076817354,0.001,4795.9,4795.8,2.08515784]
[1756076817515,0.7896,4795.9,4795.8,3.578]
[1756076817704,0.7896,4795.9,4795.3,4.603]
[1756076818038,0.7896,4795.9,4795.5,3.0]
[1756076818039,0.4744,4795.8,4795.5,3.0]
[1756076818254,0.4744,4795.8,4795.3,1.603]
[1756076818255,0.001,4795.9,4795.7,3.0]
[1756076818543,0.001,4795.9,4795.8,5.66315784]
[1756076818841,0.001,4795.9,4795.8,3.578]
[1756076819052,0.3152,4795.9,4795.8,3.578]
[1756076819429,0.7896,4795.9,4795.8,5.66315784]
[1756076820850,0.7896,4795.9,4795.8,6.28994184]
[1756076822639,0.7896,4795.9,4794.6,2.08563671]
[1756076822895,0.92436989,4795.8,4794.7,3.578]
[1756076823025,0.63007716,4795.7,4794.9,3.626967]
[1756076823228,0.3142,4795.0,4794.9,3.626967]
[1756076823424,0.7886,4795.0,4794.9,3.626967]
[1756076824955,0.7886,4795.0,4794.9,0.626967]
[1756076825154,0.7886,4795.0,4794.9,3.578]
[1756076825358,0.7886,4795.0,4794.3,5.08976732]
[1756076825359,0.7886,4795.0,4794.3,0.004]
[1756076825544,0.7886,4795.0,4793.6,0.004]
[1756076825545,0.92447893,4794.9,4793.6,0.004]
[1756076825862,2.13270283,4794.2,4793.6,0.004]
[1756076826067,2.61458176,4794.1,4793.6,0.004]
[1756076826269,0.3142,4793.7,4793.6,0.004]
[1756076826574,0.76427893,4793.7,4793.6,0.004]
[1756076827284,0.104,4794.1,4793.6,3.582]
[1756076827442,0.104,4794.1,4793.7,3.0]
[1756076827638,0.104,4794.1,4794.0,2.08594075]
[1756076827951,0.104,4794.1,4794.0,5.96934075]
[1756076828150,0.44957776,4795.1,4794.4,2.08572553]
[1756076828348,0.104,4794.6,4794.5,3.578]
[1756076828551,0.4182,4794.6,4794.5,5.66372322]
[1756076828876,0.3142,4794.6,4794.5,5.66372322]
[1756076829061,0.3142,4794.6,4794.5,3.578]
[1756076829945,0.104,4794.9,4794.8,2.08559272]
[1756076830156,0.104,4794.9,4794.8,5.66359272]
[1756076830353,0.001,4795.9,4795.5,2.08528702]
[1756076830560,0.105,4795.9,4795.6,3.578]
[1756076830753,0.5794,4795.9,4795.7,3.578]
[1756076830953,0.3142,4795.8,4795.7,3.578]
[1756076831580,0.7886,4795.8,4795.4,3.578]
[1756076831965,0.104,4795.5,4795.4,3.578]
[1756076832159,0.8926,4795.5,4795.4,3.578]
[1756076832981,0.8296,4795.5,4794.8,3.0]
[1756076833272,0.8296,4795.5,4795.1,2.08544957]
[1756076833477,0.3972,4795.5,4794.9,3.578]
[1756076833683,0.3972,4795.5,4795.0,3.578]
[1756076833981,0.104,4795.5,4795.4,2.08533177]
[1756076834155,0.104,4795.5,4795.4,8.66333177]
[1756076834357,0.104,4795.7,4795.5,3.0]
[1756076834567,0.7256,4795.6,4795.0,2.18949091]
[1756076834773,0.2932,4795.6,4795.0,3.578]
[1756076834952,0.104,4795.1,4794.9,3.578]
[1756076835148,0.7256,4795.0,4794.9,3.578]
[1756076835752,0.104,4795.1,4794.9,3.578]
[1756076835986,0.104,4795.3,4795.1,2.08546224]
[1756076836285,0.4334,4795.9,4795.4,2.08533082]
[1756076836286,0.001,4795.9,4795.4,2.08533082]
[1756076836446,0.2932,4795.5,4795.4,2.08533082]
[1756076836646,0.104,4795.6,4795.5,2.08528829]
[1756076836850,0.104,4795.6,4795.5,8.96738829]
[1756076837092,0.001,4795.9,4795.8,2.08515784]
[1756076837292,0.001,4795.9,4795.8,8.96725784]
[1756076837583,0.001,4795.9,4795.8,9.53865784]
[1756076838684,0.001,4795.9,4795.8,10.19865784]
[1756076838886,0.001,4795.9,4795.8,6.9699328]
[1756076839051,0.001,4795.9,4795.8,11.0153328]
[1756076840277,0.001,4795.9,4795.8,10.5479328]
[1756076840584,0.001,4795.9,4795.8,8.76715784]
[1756076840789,0.2942,4795.9,4795.8,8.66315784]
[1756076841081,0.001,4795.9,4795.8,8.96725784]
[1756076841283,0.001,4795.9,4795.8,9.43465784]
[1756076842450,0.001,4795.9,4795.8,5.38925784]
[1756076842656,0.001,4795.9,4795.8,8.66215784]
[1756076842857,0.2942,4795.9,4795.8,3.577]
[1756076843167,0.7266,4795.9,4795.8,3.577]
[1756076843363,0.7266,4795.9,4795.5,0.104]
[1756076843568,0.104,4795.8,4795.6,3.577]
[1756076843884,0.104,4795.8,4795.1,3.104]
[1756076843885,0.104,4795.8,4795.7,3.577]
[1756076844094,0.104,4795.8,4795.6,3.577]
[1756076844258,0.2932,4795.7,4795.6,3.577]
[1756076844683,0.104,4795.8,4795.6,5.6622448]
[1756076844883,0.001,4795.9,4795.6,5.6622448]
[1756076844884,0.001,4795.9,4795.7,0.39515669]
[1756076845071,0.001,4795.9,4795.8,3.577]
[1756076845270,0.001,4795.9,4795.8,5.66215784]
[1756076845578,0.7266,4795.9,4795.6,0.104]
[1756076845761,0.7266,4795.9,4795.7,3.577]
[1756076845762,0.4324,4795.8,4795.7,3.577]
[1756076845961,0.7256,4795.8,4795.7,3.577]
[1756076846301,0.2932,4795.8,4795.7,3.577]
[1756076847288,0.7256,4795.8,4795.7,3.577]
[1756076847958,0.7256,4795.8,4794.3,0.004]
[1756076848155,0.104,4795.3,4794.3,3.581]
[1756076848355,0.104,4794.9,4794.4,3.0]
[1756076848551,0.2932,4794.5,4794.4,3.0]
[1756076848988,0.104,4794.9,4794.4,3.0]
[1756076849299,0.5364,4794.9,4794.4,3.0]
[1756076849456,0.4324,4794.8,4794.4,3.0]
[1756076849954,0.104,4794.9,4794.4,3.0]
[1756076850351,0.2932,4794.5,4794.4,3.0]
[1756076850755,0.2932,4794.5,4794.3,3.581]
[1756076850756,0.7256,4794.5,4794.3,3.581]
[1756076852156,0.4324,4794.4,4794.3,0.004]
[1756076852360,0.7256,4794.4,4794.3,0.004]
[1756076853090,0.2932,4794.4,4794.3,0.004]
[1756076853498,0.104,4794.4,4794.3,0.004]
[1756076853981,0.3972,4794.4,4794.3,0.004]
[1756076854570,0.8296,4794.4,4794.3,0.004]
[1756076855499,0.95743921,4794.4,4794.3,0.004]
[1756076857385,3.04320593,4794.4,4794.3,0.004]
[1756076857696,3.49199806,4794.4,4794.3,0.004]
[1756076858299,1.40623134,4794.4,4794.3,0.004]
[1756076858508,0.95743921,4794.4,4794.3,0.004]
[1756076859065,1.61743921,4794.4,4794.3,0.004]
[1756076859597,2.06623134,4794.4,4794.3,0.004]
[1756076859804,1.40623134,4794.4,4794.3,0.004]
[1756076859972,0.95743921,4794.4,4794.3,0.004]
[1756076861569,6.62120593,4794.4,4794.3,0.004]
[1756076861771,7.28120593,4794.4,4794.3,0.004]
[1756076862083,7.7293635,4794.4,4794.3,0.004]
[1756076862282,7.28120593,4794.4,4794.3,0.004]
[1756076863016,5.19543921,4794.4,4794.3,0.004]
[1756076863308,4.53543921,4794.4,4794.3,0.004]
[1756076863669,8.98613629,4794.4,4794.3,0.004]
[1756076864483,11.98613629,4794.4,4794.3,0.004]
[1756076865169,12.54712892,4794.4,4794.3,0.004]
[1756076865371,11.98613629,4794.4,4794.3,0.004]
[1756076866280,12.54712892,4794.4,4794.3,0.004]
[1756076866483,11.98613629,4794.4,4794.3,0.004]
[1756076867874,12.54712892,4794.4,4794.3,0.004]
[1756076868070,19.15613629,4794.4,4794.3,0.004]
[1756076869415,19.90729539,4794.4,4794.3,0.004]
[1756076869976,19.15613629,4794.4,4794.3,0.004]
[1756076871368,14.66026957,4794.4,4794.3,0.004]
[1756076871572,18.23926957,4794.4,4794.3,0.004]
[1756076871775,20.32503629,4794.4,4794.3,0.004]
[1756076872211,18.23926957,4794.4,4794.3,0.004]
[1756076872708,21.51816161,4794.4,4794.3,0.004]
[1756076873011,20.77213629,4794.4,4794.3,0.004]
[1756076873892,20.32503629,4794.4,4794.3,0.004]
[1756076874105,21.45182033,4794.4,4794.3,0.004]
[1756076874311,21.89892033,4794.4,4794.3,0.004]
[1756076874506,20.77213629,4794.4,4794.3,0.004]
[1756076875107,3.3429669,4794.0,4793.8,0.004]
[1756076875309,4.96231033,4793.9,4793.8,0.004]
[1756076875512,4.67281033,4793.9,4793.8,0.004]
[1756076875690,4.67281033,4793.9,4793.8,0.303]
[1756076876101,4.67281033,4793.9,4793.8,0.7495]
[1756076876515,4.99931993,4793.9,4793.8,0.303]
[1756076876688,4.99931993,4793.9,4793.8,0.7495]
[1756076876888,4.45643996,4793.9,4793.8,0.7495]
[1756076877588,4.12993036,4793.9,4793.8,0.7495]
[1756076878113,4.69117484,4793.9,4793.8,0.7495]
[1756076878615,4.12993036,4793.9,4793.8,0.7495]
[1756076879788,4.69166073,4793.9,4793.8,0.7495]
[1756076880320,4.12993036,4793.9,4793.8,0.7495]
[1756076880817,11.30465354,4793.9,4793.8,0.004]
[1756076881024,12.10532968,4793.9,4793.8,0.004]
[1756076881208,8.10240729,4793.9,4793.8,0.004]
[1756076881815,9.35940729,4793.9,4793.8,0.004]
[1756076882626,11.44539156,4793.9,4793.8,0.004]
[1756076882823,1.917,4793.7,4793.6,0.004]
[1756076883022,9.23243036,4793.7,4793.6,0.004]
[1756076883196,9.59233036,4793.7,4793.6,0.004]
[1756076883397,9.23243036,4793.7,4793.6,0.004]
[1756076883702,7.02593036,4793.7,4793.6,0.7495]
[1756076883900,4.12993036,4793.7,4793.6,0.7495]
[1756076884228,5.25491348,4793.7,4793.6,0.004]
[1756076884434,4.7467234,4793.7,4793.6,0.004]
[1756076884812,4.5429234,4793.7,4793.6,0.004]
[1756076885015,4.5429234,4793.7,4793.6,0.303]
[1756076885212,4.5429234,4793.7,4793.6,0.004]
[1756076885417,5.2795234,4793.7,4793.6,0.004]
[1756076885612,7.3655947,4793.7,4793.6,0.004]
[1756076885818,12.47802527,4793.7,4793.6,0.004]
[1756076886398,13.9803939,4793.7,4793.6,0.004]
[1756076886795,13.98042897,4793.7,4793.6,0.004]
[1756076887001,4.00315833,4793.5,4793.4,0.004]
[1756076887201,20.7647775,4793.5,4793.4,0.004]
[1756076887436,23.05370948,4793.5,4793.4,0.004]
[1756076888731,4.0032889,4793.2,4793.1,0.044]
[1756076888905,8.5141849,4793.2,4793.1,0.044]
[1756076889111,16.2352849,4793.2,4793.1,0.044]
[1756076889316,16.9748734,4793.2,4793.1,0.044]
[1756076889924,1.917,4792.4,4792.1,0.04]
[1756076890231,5.63093036,4792.3,4792.1,0.04]
[1756076890458,0.55193036,4792.2,4792.1,0.04]
[1756076890601,1.02865353,4792.2,4792.1,0.04]
[1756076890797,1.02865353,4792.2,4792.1,0.339]
[1756076891003,0.55193036,4792.2,4792.1,0.7855]
[1756076891204,0.55193036,4792.2,4792.1,0.04]
[1756076891421,0.84143036,4792.2,4792.1,0.04]
[1756076891623,0.76143036,4792.2,4792.1,0.04]
[1756076891824,0.47193036,4792.2,4792.1,0.04]
[1756076892238,8.21225462,4792.2,4792.1,0.04]
[1756076892403,8.40756569,4792.2,4792.1,0.04]
[1756076892829,0.66,4791.9,4791.3,0.004]
[1756076893029,0.104,4791.4,4791.3,0.004]
[1756076893233,3.682,4791.4,4791.3,0.2973]
[1756076893637,3.682,4791.4,4791.3,0.7472]
[1756076894930,7.19128035,4791.4,4791.3,0.004]
[1756076895305,9.27835302,4791.4,4791.3,0.004]
[1756076895510,6.72918035,4791.4,4791.3,0.004]
[1756076895812,15.23087356,4791.4,4791.3,0.004]
[1756076896014,1.917,4791.2,4791.1,0.04]
[1756076896242,12.98634117,4791.2,4791.1,0.04]
[1756076896407,13.44844117,4791.2,4791.1,0.04]
[1756076896716,11.9499362,4791.2,4791.1,0.04]
[1756076898518,9.40067641,4791.2,4791.1,0.04]
[1756076898838,11.4878362,4791.2,4791.1,0.04]
[1756076899217,11.9499362,4791.2,4791.1,0.04]
[1756076899643,11.4878362,4791.2,4791.1,0.04]
[1756076899859,5.52117641,4791.2,4791.1,0.04]
[1756076900153,11.4888362,4791.2,4791.1,0.04]
[1756076900448,12.68163827,4791.2,4791.1,0.04]
[1756076900813,11.9509362,4791.2,4791.1,0.04]
[1756076901129,11.4888362,4791.2,4791.1,0.04]
[1756076901335,20.15314788,4791.2,4791.1,0.04]
[1756076901755,17.76448809,4791.2,4791.1,0.04]
[1756076902255,17.56934754,4791.2,4791.1,0.3333]
[1756076902550,16.07503586,4791.2,4791.1,0.3333]
[1756076903057,1.917,4791.0,4790.8,0.4499]
[1756076903235,9.08068035,4791.0,4790.9,0.2973]
[1756076903756,9.83014156,4791.0,4790.9,0.004]
[1756076903955,9.52864156,4791.0,4790.9,0.004]
[1756076904259,4.02696121,4791.0,4790.9,0.7472]
[1756076904424,4.87747304,4791.0,4790.9,0.7472]
[1756076904623,4.13096121,4791.0,4790.9,0.7472]
[1756076904830,4.69076847,4791.0,4790.9,0.7472]
[1756076905127,4.13096121,4791.0,4790.9,0.7472]
[1756076905925,0.001,4791.3,4790.9,0.7472]
[1756076906131,0.001,4791.3,4791.0,0.73375599]
[1756076906329,0.001,4791.3,4791.2,0.2933]
[1756076906551,3.58,4791.3,4791.2,0.2933]
[1756076906760,4.02792189,4791.3,4791.2,0.2933]
[1756076907061,4.02792189,4791.3,4791.2,0.7432]
[1756076907429,4.02808904,4791.3,4791.2,0.7432]
[1756076908031,0.001,4791.3,4791.2,0.7432]
[1756076908759,0.44906949,4791.3,4791.2,0.7432]
[1756076908931,0.001,4791.3,4791.2,0.7432]
[1756076909137,4.02806949,4791.3,4791.2,0.7432]
[1756076909761,4.02806949,4791.3,4791.2,0.2933]
[1756076910260,4.02806949,4791.3,4791.2,0.7432]
[1756076910493,3.58,4791.3,4791.2,0.7432]
[1756076911992,3.58,4791.3,4791.2,0.2933]
[1756076912150,3.58,4791.3,4790.9,0.004]
[1756076912151,4.38672242,4791.3,4790.9,0.004]
[1756076912453,0.44872242,4791.2,4790.9,0.004]
[1756076912658,0.3015,4791.0,4790.9,0.004]
[1756076912848,0.75022242,4791.0,4790.9,0.004]
[1756076913044,3.12932242,4791.0,4790.9,0.004]
[1756076913283,4.22084589,4791.0,4790.9,0.004]
[1756076913453,3.66103863,4791.0,4790.9,0.004]
[1756076913805,3.98775485,4791.0,4790.9,0.004]
[1756076914285,3.52565485,4791.0,4790.9,0.004]
[1756076914457,9.07500177,4791.0,4790.9,0.004]
[1756076915481,10.19476952,4791.0,4790.9,0.004]
[1756076915778,13.77276952,4791.0,4790.9,0.004]
[1756076915981,12.95207342,4791.0,4790.9,0.004]
[1756076916184,12.95207342,4791.0,4790.6,0.004]
[1756076916185,7.00437762,4790.7,4790.6,0.004]
[1756076916394,13.39960004,4790.7,4790.6,0.004]
[1756076916608,13.86170004,4790.7,4790.6,0.004]
[1756076916801,14.05682482,4790.7,4790.6,0.004]
[1756076917006,4.00446477,4790.5,4790.4,0.004]
[1756076917217,3.66,4788.2,4788.1,0.044]
[1756076917413,11.24954677,4788.2,4788.1,0.044]
[1756076917614,10.12493863,4788.2,4788.1,0.044]
[1756076917771,10.45186324,4788.2,4788.1,0.044]
[1756076917967,6.21386324,4788.2,4788.1,0.044]
[1756076918273,10.61339421,4788.2,4788.1,0.044]
[1756076918586,11.27339421,4788.2,4788.1,0.044]
[1756076918981,11.57489421,4788.2,4788.1,0.044]
[1756076919312,10.91396324,4788.2,4788.1,0.044]
[1756076920104,12.17096324,4788.2,4788.1,0.044]
[1756076920288,5.7485111,4788.1,4786.1,0.044]
[1756076920598,3.05040374,4787.2,4786.1,0.044]
[1756076920798,8.68612616,4787.2,4786.1,0.044]
[1756076921199,9.14822616,4787.2,4786.1,0.044]
[1756076921385,12.14822616,4787.2,4786.1,0.044]
[1756076921590,12.67994237,4787.2,4786.1,0.044]
[1756076921977,6.24643863,4787.2,4786.1,0.4939]
[1756076922178,9.82643863,4787.2,4786.4,0.4499]
[1756076922714,7.94489767,4787.2,4786.4,0.4499]
[1756076922912,6.16643863,4787.2,4786.4,0.4499]
[1756076923270,6.16643863,4787.2,4787.1,0.3338]
[1756076923506,7.28489767,4787.2,4787.1,0.044]
[1756076923671,7.61187806,4787.2,4787.1,0.044]
[1756076924001,3.50016185,4787.2,4787.1,0.3338]
[1756076924206,5.96170281,4787.2,4787.1,0.3338]
[1756076924370,7.08016185,4787.2,4787.1,0.3338]
[1756076925205,3.50016185,4787.2,4787.1,0.3338]
[1756076925369,5.96170281,4787.2,4787.1,0.3338]
[1756076926007,5.96170281,4787.2,4787.1,0.779]
[1756076926203,7.07856014,4787.2,4787.1,0.779]
[1756076926390,5.96170281,4787.2,4787.1,0.3338]
[1756076926700,7.83966014,4787.2,4787.1,0.044]
[1756076926866,6.72280281,4787.2,4787.1,0.044]
[1756076927071,7.48760281,4787.2,4787.1,0.044]
[1756076927469,7.02750281,4787.2,4787.1,0.044]
[1756076927976,0.77570281,4787.2,4787.1,0.779]
[1756076928378,0.44872242,4787.2,4787.1,0.779]
[1756076929885,0.44872242,4787.2,4787.1,2.86794737]
[1756076930090,0.44872242,4787.2,4787.1,3.36365353]
[1756076930287,0.44872242,4787.2,4787.1,2.86794737]
[1756076930485,0.55790123,4787.8,4787.6,2.0887263]
[1756076930671,0.55790123,4788.0,4787.7,0.735]
[1756076930874,0.44617701,4787.9,4787.8,0.4452]
[1756076931075,0.44617701,4787.9,4787.8,0.735]
[1756076932899,0.44617701,4787.9,4787.8,2.82364196]
[1756076933092,3.586,4788.3,4787.9,2.08859428]
[1756076933291,0.44614361,4788.2,4788.0,2.53374029]
[1756076933492,0.44614361,4788.1,4787.8,0.49123593]
[1756076933693,0.44614361,4788.0,4787.4,3.0]
[1756076933933,4.14290123,4788.6,4787.9,0.2898]
[1756076934095,0.44617005,4788.5,4787.9,0.2898]
[1756076934288,0.44617005,4788.4,4787.9,0.735]
[1756076934510,0.44617005,4788.3,4787.9,0.2898]
[1756076934714,0.44617005,4788.2,4788.0,0.4452]
[1756076934919,0.44617005,4788.1,4787.2,2.08890374]
[1756076935087,4.02917005,4788.0,4786.9,0.627951]
[1756076935310,4.02917005,4787.9,4786.8,2.08903507]
[1756076935607,0.55790123,4788.1,4786.8,5.5342744]
[1756076935608,4.03017005,4787.8,4786.8,5.5342744]
[1756076935794,4.03017005,4787.8,4786.5,3.69518102]
[1756076935795,0.44617005,4787.7,4787.2,0.4452]
[1756076935988,0.44617005,4787.6,4787.3,0.4452]
[1756076936183,3.584,4787.8,4787.5,0.2898]
[1756076936389,0.44637478,4787.7,4787.5,0.735]
[1756076936627,0.44637478,4787.6,4787.5,0.2898]
[1756076937216,0.44637478,4787.6,4787.5,0.735]
[1756076937743,3.586,4788.1,4787.6,2.08872921]
[1756076938039,0.1048,4787.6,4787.5,2.08875924]
[1756076938236,0.1048,4787.6,4787.5,0.2898]
[1756076938390,0.55194649,4787.6,4787.5,0.2898]
[1756076938791,0.1048,4787.6,4787.5,2.82377284]
[1756076939229,0.1048,4787.6,4787.5,0.735]
[1756076939949,0.1048,4787.6,4787.5,2.82377284]
[1756076940464,0.55251865,4787.6,4787.1,0.044]
[1756076940609,0.44771865,4787.5,4787.2,0.4452]
[1756076940910,0.74402131,4788.0,4787.3,2.5340601]
[1756076940911,0.44771865,4787.4,4787.3,2.5340601]
[1756076941110,0.44771865,4787.4,4787.3,0.2898]
[1756076941317,0.85351865,4787.4,4787.1,0.044]
[1756076941510,0.44771865,4787.3,4787.1,0.044]
[1756076941828,0.44771865,4787.2,4787.1,0.044]
[1756076942218,0.44771865,4787.2,4787.1,0.779]
[1756076942824,0.44771865,4787.2,4787.1,2.86794737]
[1756076944344,0.44771865,4787.2,4787.1,5.86794737]
[1756076944544,0.1048,4787.6,4787.5,2.08877284]
[1756076944748,0.55400433,4787.6,4787.5,2.37857284]
[1756076944950,0.55400433,4787.6,4787.5,2.82377284]
[1756076945339,0.55400433,4787.6,4787.5,3.31943404]
[1756076946224,0.44920433,4787.6,4787.5,0.2898]
[1756076946425,0.55400433,4787.6,4787.5,0.2898]
[1756076947652,0.55400433,4787.6,4787.5,2.37857284]
[1756076948079,0.55400433,4787.6,4787.5,5.82377284]
[1756076948349,0.001,4788.1,4787.7,2.0886809]
[1756076948559,0.1048,4787.9,4787.8,2.53384196]
[1756076948744,0.55439717,4787.9,4787.8,2.82364196]
[1756076950029,0.55439717,4787.9,4787.8,0.2898]
[1756076950553,0.55439717,4787.9,4787.8,2.37844196]
[1756076950758,0.55439717,4787.9,4787.8,0.2898]
[1756076950928,0.55439717,4787.9,4787.8,2.37844196]
[1756076951557,0.55439717,4787.9,4787.8,0.2898]
[1756076952454,0.55448051,4787.9,4787.8,0.2898]
[1756076952632,0.55448051,4787.9,4787.8,2.37844196]
[1756076954327,0.1048,4787.9,4787.8,2.37844196]
[1756076954661,0.5549075,4787.9,4787.8,2.37844196]
[1756076955063,0.5549075,4787.9,4787.8,0.2898]
[1756076956254,0.5549075,4787.9,4787.5,0.79566155]
[1756076956574,0.45051587,4787.8,4787.6,2.08870664]
[1756076956878,1.22802202,4787.7,4787.1,0.044]
[1756076957178,0.1048,4787.2,4787.1,0.044]
[1756076957345,0.87152202,4787.2,4787.1,0.044]